Cogmind - Beta 10.2 *** ADVENTURER MODE // 2020.12.08 @ 12:47:42 Player: Nomiddlename303 Result: Self-destructed Performance ------------- Evolutions (5) 2500 Regions Visited (11) 2200 Robots Destroyed (172) 860 Value Destroyed (5895) 5895 Prototype IDs (29) 580 Alien Tech Used (1) 200 Bonus (547) 547 TOTAL SCORE: 12782 Bonus ------- High Alert Combat Kills 150 Follower Combat Kills 377 Met Zhirov 300 Friendly Fire -280 Cogmind --------- Core Integrity 793/1000 Matter 290/300 Energy 488/840 System Corruption 4% Temperature Cool (170) Movement Rolling (130) Ox3 Location -4/Proximity Caves Parts ------- > --- POWER (1) -------- Heavy Antimatter Reactor > --- PROPULSION (5) --- Biometal Leg Armored Huge Wheel > --- UTILITY (9) ------ Improved Coolant Injector Large Storage Unit Large Storage Unit Large Storage Unit Energy Well Enhanced Optical Array Improved Core Analyzer Experimental Weapon Shielding Force Field > --- WEAPON (2) ------- Neutron Cannon Neutron Cannon > --- INVENTORY (22) --- Heavy Deuterium Engine Advanced Cooling System Advanced Cooling System Improved Matter Compressor (300) Improved Particle Charger Weapon Cycler Improved Focal Shield Hacking Suite Mapping Drone Bay (3/3) Transdimensional Reconstructor Phase Gun Dispersion Rifle Proton Cannon Disruptor Cannon Disruptor Cannon Matter Neutralizer Proton Missile Launcher Heavy Rocket Launcher Chainsword Peak State ------------ > --- POWER ------------ Fusion Reactor > --- PROPULSION ------- Armored Medium Treads Armored Medium Treads Wheel Armored Huge Wheel > --- UTILITY ---------- Improved Coolant Injector Large Storage Unit Large Storage Unit Large Storage Unit Improved Matter Compressor Enhanced Optical Array Improved Core Analyzer Improved Particle Charger Experimental Weapon Shielding > --- WEAPON ----------- Neutron Cannon Neutron Cannon > --- INVENTORY -------- Heavy Deuterium Engine Improved Carbon-fiber Leg Armored Huge Wheel Advanced Cooling System Advanced Cooling System Energy Well Matter Compressor Weapon Cycler Improved Focal Shield Hacking Suite Mapping Drone Bay Transdimensional Reconstructor Phase Gun Dispersion Rifle Proton Cannon Disruptor Cannon Disruptor Cannon Matter Neutralizer Proton Missile Launcher Heavy Rocket Launcher Chainsword [Rating: 89] Favorites ----------- Power Heavy Ion Engine Engine Heavy Ion Engine Power Core Neutrino Core Reactor Fusion Reactor Propulsion Aluminum Leg Treads Armored Medium Treads Leg Aluminum Leg Wheel Armored Huge Wheel Utility Large Storage Unit Device Cooling System Storage Large Storage Unit Processor Core Analyzer Hackware Hacking Suite Protection Heavy Armor Plating Weapon Neutron Cannon Energy Gun Improved Medium Laser Energy Cannon Neutron Cannon Ballistic Gun Improved Assault Rifle Ballistic Cannon Improved Light Cannon Launcher Proton Missile Launcher Impact Weapon Maul Slashing Weapon Chainsword Build | -11 -10 -9 -9 -8 -7 -6 -5 -5 -5 -5 -4 ------- Run | Scr Mat Mat Sto Mat Fac Fac Fac Upp Upp Zhi Pro Slots Evolved 10 | . . 2 . 2 2 2 2 . . . . Power . | . . . . . . . . . . . . Propulsion 3 | . . 1 . 1 1 . . . . . . Utility 7 | . . 1 . 1 1 2 2 . . . . Weapon . | . . . . . . . . . . . . Parts Attached 157 | 6 5 29 29 7 32 3 19 13 2 8 4 Power 8 | 1 . 1 1 . 2 . 2 . . 1 . Engine 5 | 1 . 1 1 . 2 . . . . . . Core 1 | . . . . . . . 1 . . . . Reactor 2 | . . . . . . . 1 . . 1 . Propulsion 28 | 2 . 3 6 2 7 . 4 2 . . 2 Treads 4 | . . . . . 1 . 3 . . . . Leg 17 | 2 . 3 6 2 3 . . . . . 1 Wheel 7 | . . . . . 3 . 1 2 . . 1 Hover . | . . . . . . . . . . . . Flight . | . . . . . . . . . . . . Utility 51 | 1 2 8 9 2 7 1 7 7 . 5 2 Device 18 | . . . 6 1 2 . 1 4 . 3 1 Storage 10 | 1 2 3 . . 2 . . . . 1 1 Processor 3 | . . . . . 1 . 2 . . . . Hackware 1 | . . . . . . . 1 . . . . Protection 19 | . . 5 3 1 2 1 3 3 . 1 . Artifact . | . . . . . . . . . . . . Weapon 70 | 2 3 17 13 3 16 2 6 4 2 2 . Energy Gun 11 | 2 1 4 2 1 1 . . . . . . Energy Cannon 30 | . 1 4 2 2 8 2 5 4 1 1 . Ballistic Gun 7 | . 1 3 3 . . . . . . . . Ballistic Cannon 3 | . . . 3 . . . . . . . . Launcher 5 | . . 2 . . 1 . 1 . 1 . . Special Weapon . | . . . . . . . . . . . . Impact Weapon 7 | . . 4 3 . . . . . . . . Slashing Weapon 7 | . . . . . 6 . . . . 1 . Piercing Weapon . | . . . . . . . . . . . . Special Melee Weapon . | . . . . . . . . . . . . Unidentified Prototypes 11 | . . 2 1 1 1 . 1 . . 5 . Parts Lost 14 | . . 2 . . 1 . 2 4 1 . 4 Power . | . . . . . . . . . . . . Propulsion 5 | . . . . . . . 1 . . . 4 Utility 5 | . . 1 . . 1 . 1 1 1 . . Weapon 4 | . . 1 . . . . . 3 . . . Highest Loss Streak 4 | . . 2 . . 1 . 1 4 1 . 4 Average Slot Usage (%) 93 | . 99 99 99 100 89 80 83 89 94 91 91 Engine 7 | . 14 11 11 9 7 6 2 . . . . Treads 3 | . . . . . 6 6 6 11 11 11 8 Leg 18 | . 28 33 33 36 11 . . . . . . Wheel 5 | . . . . . 9 13 10 11 11 11 10 Device 5 | . . . 4 16 7 6 5 6 11 14 15 Storage 20 | . 27 22 22 18 20 20 17 17 17 17 18 Processor 4 | . . . . . 6 6 10 11 11 11 11 Protection 6 | . . 10 6 1 2 6 10 10 11 5 5 Energy Gun 2 | . 18 3 2 . . . . . . . . Energy Cannon 9 | . 2 10 1 18 13 13 10 11 10 10 11 Ballistic Gun 2 | . 6 5 6 . . . . . . . . Ballistic Cannon 1 | . . . 8 . . . . . . . . Impact Weapon 1 | . . 2 2 . . . . . . . . Naked Turns . | . . . . . . . . . . . . Heaviest Build 118 | 13 34 55 55 57 75 91 118 116 98 97 98 Greatest Support 56 | 20 20 33 33 46 56 56 56 38 38 38 56 Greatest Overweight (x) 4 | . 1 1 1 1 2 1 4 3 2 2 3 Average Overweight (x) 1 | . . 1 1 1 . 1 2 2 2 2 2 Largest Inventory Capacity 22 | 6 14 16 16 16 22 22 22 22 22 22 22 Average Capacity 18 | 5 11 15 16 16 19 22 22 22 22 22 22 Most Carried 22 | 6 14 16 16 16 22 22 22 22 22 22 22 Average Carried 17 | 3 11 15 15 14 19 21 21 20 19 21 21 Final Capacity 22 | 6 14 16 16 16 22 22 22 22 22 22 22 Final Carried 22 | 6 14 16 16 16 22 22 22 17 22 22 19 Class Distribution -------------------- 51% | Mutant 41% | Hauler-Mutant 6% | Commander-Mutant Dominant Class ---------------- Mutant | -10/Materials Mutant | -9/Materials Mutant | -9/Storage Commander-Mutant | -8/Materials Hauler-Mutant | -7/Factory Hauler-Mutant | -6/Factory Hauler-Mutant | -5/Factory Hauler-Mutant | -5/Upper Caves Hauler-Mutant | -5/Upper Caves Hauler-Mutant | -5/Zhirov Hauler-Mutant | -4/Proximity Caves Resources | -11 -10 -9 -9 -8 -7 -6 -5 -5 -5 -5 -4 ----------- Run | Scr Mat Mat Sto Mat Fac Fac Fac Upp Upp Zhi Pro Matter Collected 3358 | 260 90 773 679 70 320 310 226 150 61 380 39 Remotely . | . . . . . . . . . . . . Salvage Created 8022 | 54 202 1806 1249 420 1211 522 1424 586 166 211 171 Parts 399 | 2 11 104 69 21 56 14 79 20 12 4 7 Haulers Intercepted 20 | . 1 6 6 2 3 1 1 . . . . Recyclers Shooed 5 | . . 1 2 . 1 1 . . . . . Parts Field Recycled . | . . . . . . . . . . . . Retrieved Matter . | . . . . . . . . . . . . Parts Self-Destructed 34 | . . . . . . . . 19 6 2 7 Prevented 3 | . . . . . . . . . 3 . . Kills | -11 -10 -9 -9 -8 -7 -6 -5 -5 -5 -5 -4 ------- Run | Scr Mat Mat Sto Mat Fac Fac Fac Upp Upp Zhi Pro Combat Hostiles Destroyed 117 | . 5 29 18 5 15 4 22 11 5 . 3 Guns 21 | . 3 11 7 . . . . . . . . Cannons 76 | . . 12 11 4 13 4 17 11 1 . 3 AOE 19 | . 2 6 . . 2 . 5 . 4 . . Classes Destroyed 15 | 1 3 6 . 1 2 . 1 1 . . . Worker 7 | . . 1 . . 2 . 4 . . . . Builder 2 | . . 1 . . . . 1 . . . . Tunneler 1 | . . . . . . . 1 . . . . Hauler 20 | . 1 6 6 2 3 1 1 . . . . Recycler 8 | 1 . 2 2 1 1 1 . . . . . Operator 5 | . . 2 2 . 1 . . . . . . Watcher 10 | . . 5 2 . . . 3 . . . . Swarmer 18 | . 3 6 . . . . 4 1 4 . . Grunt 42 | . 2 12 8 2 8 3 2 4 . . 1 Brawler 3 | . . 1 . . . . . 2 . . . Duelist 3 | . . . . 1 . . . 2 . . . Sentry 32 | . . 10 10 2 4 1 4 1 . . . Hunter 11 | . . . . . 2 . 6 . 1 . 2 Programmer 9 | . . . . . 3 . 6 . . . . Behemoth 1 | . . . . . . . . 1 . . . Best Kill Streak 8 | 1 3 8 3 2 3 2 6 6 4 . 2 Combat Bots Only 6 | . 3 6 3 2 2 2 6 6 4 . 2 Max Kills in Single Turn 5 | 1 2 5 1 1 2 2 3 1 2 . 1 Gunslinging 1 | . . 1 . . . . . . . . . Exploded 3 | . 1 3 . . 1 . 3 . 2 . . Melee . | . . . . . . . . . . . . Uniques/NPCs Destroyed . | . . . . . . . . . . . . Combat | -11 -10 -9 -9 -8 -7 -6 -5 -5 -5 -5 -4 -------- Run | Scr Mat Mat Sto Mat Fac Fac Fac Upp Upp Zhi Pro Damage Taken 6113 | . 137 645 520 215 719 198 1168 1580 227 . 704 Core 513 | . 36 120 87 12 39 12 11 67 28 . 101 Absorbed by Shields 271 | . . . . . . . . . . . 271 Core Remaining (%) 87 | 100 85 . 48 97 94 98 . . . . . Volleys Fired 417 | 3 15 81 76 26 60 22 77 30 9 . 18 Largest 2 | 2 2 2 2 2 2 2 2 2 2 . 2 Hottest 188 | 90 90 112 95 136 136 155 188 188 180 . 180 Shots Fired 750 | 6 26 144 134 51 113 36 132 60 12 . 36 Gun 186 | 6 26 82 72 . . . . . . . . Cannon 544 | . . 58 62 51 106 36 129 60 6 . 36 Launcher 20 | . . 4 . . 7 . 3 . 6 . . Special . | . . . . . . . . . . . . Kinetic 161 | . . 51 110 . . . . . . . . Thermal 468 | 3 12 31 . 51 106 36 129 58 6 . 36 Explosive 4 | . . 4 . . . . . . . . . Electromagnetic 117 | 3 14 58 24 . 7 . 3 2 6 . . Robot Hit Streak 39 | 2 7 25 30 8 20 27 31 39 3 . 9 Robot Miss Streak 5 | 1 1 2 2 3 2 . 3 1 3 . 5 Penetration Max . | . . . . . . . . . . . . Secondary Targets 3 | . 1 2 . . . . . . . . . Max Gunslinging Chain 1 | . 1 1 . . . . . . . . . Shots Hit Robots 579 | 4 20 116 119 37 85 25 88 54 6 5 20 Core Hits 271 | 1 10 59 46 9 39 13 57 18 7 4 8 Critical Hits 21 | . . . 3 6 6 1 2 1 . . 2 Critical Kills 9 | . . . 2 2 2 1 1 . . . 1 Critical Parts Destroyed 10 | . . . 1 4 4 . . . . . 1 Melee Attacks 47 | . . 11 18 . 13 . . . . 5 . Impact 29 | . . 11 18 . . . . . . . . Slashing 18 | . . . . . 13 . . . . 5 . Piercing . | . . . . . . . . . . . . Sneak Attacks 5 | . . 2 1 . 2 . . . . . . Combat Hostiles . | . . . . . . . . . . . . Follow-up Attacks . | . . . . . . . . . . . . Damage Inflicted 16903 | 66 340 2808 2271 720 2387 768 3676 2238 285 547 797 Guns 2359 | 66 225 1030 1038 . . . . . . . . Cannons 11679 | . . 1052 1053 720 1902 768 3107 2238 42 . 797 Explosions 1753 | . 115 506 28 . 292 . 569 . 243 . . Melee 1112 | . . 220 152 . 193 . . . . 547 . Ramming . | . . . . . . . . . . . . Kinetic 2262 | . . 575 1687 . . . . . . . . Thermal 10630 | 38 216 529 28 720 1927 768 3283 2215 109 . 797 Explosive 640 | . . 432 . . . . 208 . . . . Electromagnetic 2259 | 28 124 1052 404 . 267 . 185 23 176 . . Impact 372 | . . 220 152 . . . . . . . . Slashing 740 | . . . . . 193 . . . . 547 . Piercing . | . . . . . . . . . . . . Highest Corruption 4 | . . . . . 1 . 4 4 4 4 4 Average Corruption 2 | . . . . . 1 . 3 4 4 4 4 Corruption Purged . | . . . . . . . . . . . . Effects 53 | . . . . . 9 . 13 10 8 5 8 Message Errors 8 | . . . . . 2 . 2 1 1 1 1 Matter Fused 11 | . . . . . . . 4 4 2 . 1 Heat Flow Errors 7 | . . . . . . . 1 2 1 3 . Energy Discharges 11 | . . . . . 4 . 2 . 1 1 3 Parts Rejected 1 | . . . . . . . . . . . 1 Data Loss (minor) 4 | . . . . . . . . 1 2 . 1 Targeting Errors 9 | . . . . . 3 . 2 2 1 . 1 Weapon Failures 2 | . . . . . . . 2 . . . . Overload Shots . | . . . . . . . . . . . . Overflow Damage 496 | . 15 90 21 . 90 26 91 34 . 77 52 Projectiles 239 | . . 12 . . 28 26 87 34 . . 52 Explosions 19 | . 15 . . . . . 4 . . . . Melee 238 | . . 78 21 . 62 . . . . 77 . Knockbacks 5 | . . . 5 . . . . . . . . Impact . | . . . . . . . . . . . . Kinetic 3 | . . . 3 . . . . . . . . Secondary 2 | . . . 2 . . . . . . . . Self-Inflicted Damage 58 | . 51 . . . 7 . . . . . . Shots 3 | . 2 . . . 1 . . . . . . Rammed . | . . . . . . . . . . . . Targets Rammed . | . . . . . . . . . . . . Kicked . | . . . . . . . . . . . . Crushed . | . . . . . . . . . . . . Highest Temperature 311 | 90 201 180 117 23 29 87 311 246 194 182 198 Average Temperature 62 | 48 78 50 25 9 11 32 67 125 70 89 122 Received Heat Transfer 1476 | . 51 258 261 117 246 111 108 294 . . 30 Effects 1 | . . . . . . . 1 . . . . Shutdowns 1 | . . . . . . . 1 . . . . Siege Activations . | . . . . . . . . . . . . Robots Corrupted 1 | . . . 1 . . . . . . . . Combat Hostiles . | . . . . . . . . . . . . Parts Fried 10 | . . 7 2 . . . . . 1 . . Impact Corruptions 4 | . . 1 3 . . . . . . . . Robots Melted 1 | . . . . 1 . . . . . . . Combat Hostiles 1 | . . . . 1 . . . . . . . Parts Melted 27 | . . 1 . 4 12 2 6 2 . . . Heat Transferred 11892 | 111 496 1049 . 1295 2862 999 2962 1493 125 . 500 Parts Sabotaged . | . . . . . . . . . . . . Parts Stolen . | . . . . . . . . . . . . Parts Stripped . | . . . . . . . . . . . . Power Chain Reactions 11 | . 2 2 1 . 1 . 3 . 2 . . Missiles Intercepted . | . . . . . . . . . . . . Alert | -11 -10 -9 -9 -8 -7 -6 -5 -5 -5 -5 -4 ------- Run | Scr Mat Mat Sto Mat Fac Fac Fac Upp Upp Zhi Pro Peak Influence 586 | 5 190 437 252 314 290 122 586 . . . . Initial 60 | . 2 8 2 27 60 6 51 . . . . Average 128 | 1 69 128 94 139 92 60 303 . . . . Maximum Alert Level 2 | . . 2 1 1 1 . 2 . . . . Low Security (%) 78 | 100 100 74 95 76 88 100 21 . . . . Level 1 18 | . . 24 4 23 11 . 57 . . . . Level 2 3 | . . 1 . . . . 20 . . . . Level 3 . | . . . . . . . . . . . . Level 4 . | . . . . . . . . . . . . Level 5 . | . . . . . . . . . . . . High Security . | . . . . . . . . . . . . Max Security . | . . . . . . . . . . . . Squads Dispatched 21 | . . 2 4 3 7 1 4 . . . . Investigation 4 | . . 1 1 . 1 . 1 . . . . Extermination 3 | . . . . . 2 . 1 . . . . Reinforcement 10 | . . 1 3 . 3 1 2 . . . . Assault . | . . . . . . . . . . . . Garrison 4 | . . . . 3 1 . . . . . . Intercept . | . . . . . . . . . . . . Construction Impeded 1 | . . . . . . . 1 . . . . Haulers Reinforced 2 | . . . . . 1 1 . . . . . Stealth | -11 -10 -9 -9 -8 -7 -6 -5 -5 -5 -5 -4 --------- Run | Scr Mat Mat Sto Mat Fac Fac Fac Upp Upp Zhi Pro Distress Signals 16 | . . 6 3 3 . 2 2 . . . . Communications Jammed . | . . . . . . . . . . . . Distress Signals . | . . . . . . . . . . . . Times Spotted 197 | . 9 42 30 17 22 7 39 15 9 . 7 Peak Tracking Total 9 | . 3 4 3 5 5 3 5 9 4 . 4 Tactical Retreats 18 | . . 2 3 3 3 1 3 3 . . . Traps | -11 -10 -9 -9 -8 -7 -6 -5 -5 -5 -5 -4 ------- Run | Scr Mat Mat Sto Mat Fac Fac Fac Upp Upp Zhi Pro Traps Triggered 8 | . 1 2 2 . 1 2 . . . . . Indirectly 1 | . . . . . 1 . . . . . . Trap Hack Attempts . | . . . . . . . . . . . . Triggered . | . . . . . . . . . . . . Disarmed . | . . . . . . . . . . . . Reprogrammed . | . . . . . . . . . . . . Reused . | . . . . . . . . . . . . Traps Extracted . | . . . . . . . . . . . . Installed . | . . . . . . . . . . . . Triggered 3 | . . . 1 . . . . 1 1 . . Machines | -11 -10 -9 -9 -8 -7 -6 -5 -5 -5 -5 -4 ---------- Run | Scr Mat Mat Sto Mat Fac Fac Fac Upp Upp Zhi Pro Machines Disabled 13 | . 2 2 2 1 3 . 3 . . . . Max in Single Turn 3 | . 1 1 1 1 1 . 3 . . . . Garrison Access 5 | . . . 1 . 2 1 1 . . . . Machines Sabotaged . | . . . . . . . . . . . . Garrisons Compromised . | . . . . . . . . . . . . Overloaded Fab Kills . | . . . . . . . . . . . . Fab Network Shutdowns . | . . . . . . . . . . . . Hacking | -11 -10 -9 -9 -8 -7 -6 -5 -5 -5 -5 -4 --------- Run | Scr Mat Mat Sto Mat Fac Fac Fac Upp Upp Zhi Pro Machines Accessed 76 | . 7 15 10 6 17 10 4 . 2 5 . Terminals 46 | . 6 10 8 4 10 5 2 . 1 . . Fabricators . | . . . . . . . . . . . . Repair Stations 9 | . 1 2 1 1 1 2 1 . . . . Recycling Units 4 | . . 1 . . 2 1 . . . . . Scanalyzers 4 | . . 2 . . 1 1 . . . . . Garrison Access 7 | . . . 1 1 3 1 1 . . . . Total Hacks 202 | . 23 45 33 18 34 20 9 . 2 18 . Successful 130 | . 19 26 24 11 16 9 5 . 2 18 . Failed 72 | . 4 19 9 7 18 11 4 . . . . Catastrophic 6 | . . . . . 5 1 . . . . . Database Lockouts . | . . . . . . . . . . . . Manual 54 | . 12 10 18 5 6 3 . . . . . Terminals 136 | . 21 35 29 12 23 11 4 . 1 . . Fabricators . | . . . . . . . . . . . . Repair Stations 22 | . 2 4 3 3 3 4 3 . . . . Recycling Units 5 | . . 1 . . 2 2 . . . . . Scanalyzers 7 | . . 5 . . 1 1 . . . . . Garrison Access 13 | . . . 1 3 5 2 2 . . . . Terminal Hacks 81 | . 13 15 12 8 8 3 2 . 2 18 . Record 7 | . . . . . . . . . 1 6 . Part Schematic 5 | . . . . . . 1 . . . 4 . Robot Analysis 4 | . . . . . . . . . . 4 . Prototype ID Bank 11 | . 1 2 1 1 2 . . . . 4 . Open Door 4 | . . . 3 . . . . . 1 . . Level Access Points 1 | . . . . . 1 . . . . . . Branch Access Points 4 | . 1 1 1 . 1 . . . . . . Alert Level 2 | . 1 . . 1 . . . . . . . Unreport Threat 3 | . . 2 . 1 . . . . . . . Locate Traps 20 | . 5 4 4 3 2 1 1 . . . . Security Status 1 | . . . 1 . . . . . . . . Transport Status 1 | . . 1 . . . . . . . . . Hauler Manifests 3 | . 1 1 1 . . . . . . . . Registered Components 1 | . . . . . . . 1 . . . . Registered Prototypes 1 | . . . . . . 1 . . . . . Zone Layout 13 | . 4 4 1 2 2 . . . . . . Fabricator Hacks . | . . . . . . . . . . . . Repair Station Hacks 17 | . 2 4 2 2 2 3 2 . . . . Scan Component 9 | . 1 2 1 1 1 2 1 . . . . Repair 8 | . 1 2 1 1 1 1 1 . . . . Recycling Unit Hacks 3 | . . 1 . . 1 1 . . . . . Retrieve Components 3 | . . 1 . . 1 1 . . . . . Scanalyzer 5 | . . 5 . . . . . . . . . Insert Component 2 | . . 2 . . . . . . . . . Analyze 3 | . . 3 . . . . . . . . . Garrison Access Hacks 5 | . . . 1 . 2 1 1 . . . . Seal Access 5 | . . . 1 . 2 1 1 . . . . Unauthorized Hacks 19 | . 4 1 9 1 3 1 . . . . . Terminals 19 | . 4 1 9 1 3 1 . . . . . Track 14 | . 4 1 5 1 3 . . . . . . Assimilate 3 | . . . 2 . . 1 . . . . . Botnet 1 | . . . 1 . . . . . . . . Operators 1 | . . . 1 . . . . . . . . Fabricators . | . . . . . . . . . . . . Repair Stations . | . . . . . . . . . . . . Recycling Units . | . . . . . . . . . . . . Scanalyzers . | . . . . . . . . . . . . Garrison Access . | . . . . . . . . . . . . Data Cores Recovered 1 | . . 1 . . . . . . . . . Used 1 | . . 1 . . . . . . . . . Hacking Detections 59 | . 7 12 6 5 16 10 3 . . . . Full Trace Events 1 | . . . . . . . 1 . . . . Feedback Events . | . . . . . . . . . . . . Feedback Blocked . | . . . . . . . . . . . . Robot Schematics Acquired . | . . . . . . . . . . . . Robots Built . | . . . . . . . . . . . . Matter . | . . . . . . . . . . . . Time . | . . . . . . . . . . . . Total Robot Build Rating . | . . . . . . . . . . . . Part Schematics Acquired 7 | . . 2 . . . 1 . . . 4 . Parts Built . | . . . . . . . . . . . . Matter . | . . . . . . . . . . . . Time . | . . . . . . . . . . . . Total Part Build Rating . | . . . . . . . . . . . . Parts Repaired 8 | . 1 2 1 1 1 1 1 . . . . Time 215 | . 26 45 32 26 32 32 22 . . . . Parts Recycled . | . . . . . . . . . . . . Recycled Matter . | . . . . . . . . . . . . Retrieved Matter . | . . . . . . . . . . . . Retrieved Components 14 | . . 10 . . 3 1 . . . . . Parts Scanalyzed 2 | . . 2 . . . . . . . . . Part Schematics Acquired 2 | . . 2 . . . . . . . . . Parts Damaged . | . . . . . . . . . . . . Bothacking | -11 -10 -9 -9 -8 -7 -6 -5 -5 -5 -5 -4 ------------ Run | Scr Mat Mat Sto Mat Fac Fac Fac Upp Upp Zhi Pro Used RIF Installer . | . . . . . . . . . . . . Robots Hacked . | . . . . . . . . . . . . Non-combat . | . . . . . . . . . . . . Combat . | . . . . . . . . . . . . Robot Hacks Applied . | . . . . . . . . . . . . Relay Couplers Released 2 | . . . . . . . 2 . . . . Machine Destruction 2 | . . . . . . . 2 . . . . Robots Rewired 2 | . . . . . . . . 2 . . . Allies Hacked . | . . . . . . . . . . . . Hacks Repelled . | . . . . . . . . . . . . Allies | -11 -10 -9 -9 -8 -7 -6 -5 -5 -5 -5 -4 -------- Run | Scr Mat Mat Sto Mat Fac Fac Fac Upp Upp Zhi Pro Total Allies 13 | . . . 10 . . 1 . 2 . . . Largest Group 10 | . . . 10 10 3 1 . 2 . . . Highest-Rated Group 88 | . . . 88 88 31 26 . 59 . . . Highest-Rated Ally 30 | . . . 16 16 16 26 . 30 . . . Total Orders 1 | . . . 1 . . . . . . . . EXPLORE 1 | . . . 1 . . . . . . . . Ally Attacks 112 | . . . 7 97 5 . . 3 . . . Total Damage 1076 | . . . 77 881 59 . . 59 . . . Kills 14 | . . . 1 13 . . . . . . . Allies Corrupted . | . . . . . . . . . . . . Allies Melted . | . . . . . . . . . . . . Intel | -11 -10 -9 -9 -8 -7 -6 -5 -5 -5 -5 -4 ------- Run | Scr Mat Mat Sto Mat Fac Fac Fac Upp Upp Zhi Pro Robot Analysis Total 4 | . . . . . . . . . . 4 . Derelict Logs Recovered 5 | . . . . . . . . 2 1 . 2 Drone Launches 1 | . . . 1 . . . . . . . . Drone Recoveries . | . . . . . . . . . . . . Exploration | -11 -10 -9 -9 -8 -7 -6 -5 -5 -5 -5 -4 ------------- Run | Scr Mat Mat Sto Mat Fac Fac Fac Upp Upp Zhi Pro Turns Passed 11733 | 96 667 2560 2088 690 2035 796 1392 460 460 212 277 Spaces Moved 6802 | 66 407 1463 816 392 1250 606 818 263 390 164 167 Core 9 | 9 . . . . . . . . . . . Treads . | . . . . . . . . . . . . Legs 3540 | 57 407 1463 816 392 405 . . . . . . Wheels 3253 | . . . . . 845 606 818 263 390 164 167 Hover . | . . . . . . . . . . . . Flight . | . . . . . . . . . . . . Fastest Speed 50 | 50 120 150 150 150 110 110 110 110 110 110 110 Average Speed 131 | 110 148 150 150 150 121 110 119 114 110 110 110 Slowest Speed 150 | 120 150 150 150 150 150 110 140 120 110 110 130 Overloaded Moves . | . . . . . . . . . . . . Propulsion Burnouts . | . . . . . . . . . . . . Robots Hopped . | . . . . . . . . . . . . Cave-ins Triggered . | . . . . . . . . . . . . Exploration Rate (%) 50 | 4 69 98 96 42 35 18 25 60 66 61 34 Regions Visited 11 Branch Regions 5 Pre-discovered Areas 3 | . . . . . . . . . . 3 . Known Exits Taken 3 | . . 1 . . 1 . . 1 . . . Unknown Exits Taken 8 | 1 1 . 1 1 . 1 1 . 1 1 . Scrap Searched 7 | . . . . . . . . 2 3 . 2 Spaces Dug 49 | . . 8 12 . 14 7 8 . . . . Terrain Destroyed 160 | . 3 31 16 . 21 8 52 3 11 . 15 Melee 31 | . . 8 12 . 11 . . . . . . Projectile 70 | . . . 2 . 9 8 31 3 2 . 15 AOE 59 | . 3 23 2 . 1 . 21 . 9 . . Terrain Rammed . | . . . . . . . . . . . . Walls Destroyed . | . . . . . . . . . . . . Machines Disabled . | . . . . . . . . . . . . Actions | -11 -10 -9 -9 -8 -7 -6 -5 -5 -5 -5 -4 --------- Run | Scr Mat Mat Sto Mat Fac Fac Fac Upp Upp Zhi Pro Total 8741 | 80 448 1671 1507 445 1637 701 1094 351 405 187 215 Wait 1032 | . . 34 542 6 226 57 137 4 . . 26 Move 6791 | 65 406 1462 815 391 1249 605 817 262 389 163 167 Hop . | . . . . . . . . . . . . Pick Up 128 | 6 15 25 9 7 27 8 20 3 5 3 . Fast Attach 37 | 6 2 4 5 2 4 . 5 2 . 6 1 Attach 30 | . 1 4 2 2 6 1 5 6 . 1 2 Detach 1 | . . . . . 1 . . . . . . Swap 91 | . 2 21 22 3 22 2 9 5 2 2 1 Drop 131 | . 7 29 17 8 29 6 24 4 . 7 . Fire 417 | 3 15 81 76 26 60 22 77 30 9 . 18 Melee 47 | . . 11 18 . 13 . . . . 5 . Ram . | . . . . . . . . . . . . Kick . | . . . . . . . . . . . . Crush . | . . . . . . . . . . . . Escape Stasis . | . . . . . . . . . . . . Rewire 36 | . . . 1 . . . . 35 . . . Trap . | . . . . . . . . . . . . Miscellaneous . | . . . . . . . . . . . . Route ------- -11/Scrapyard -10/Materials (discovered 5 exits: *Mat x3 / Min x2) -9/Materials (discovered 6 exits: *Mat x3 / *Min x2 / *Sto) -9/Storage (discovered 2 exits: *Mat / *Rec) -8/Materials -7/Factory (discovered 6 exits: *Fac x4 / Low x2) -6/Factory (discovered 2 exits: *Fac / [*Low]) -5/Factory -5/Upper Caves -5/Upper Caves -5/Zhirov -4/Proximity Caves (discovered 1 exit: Fac) History --------- Turn | Location | Event 9 | -11/Scrapyard | Discovered new exit (range 14) 97 | -11/Scrapyard | Entered Materials 281 | -10/Materials | Discovered new exit (range 16) 300 | -10/Materials | Build established: Mutant 320 | -10/Materials | Discovered new exit (range 13) 455 | -10/Materials | Discovered new exit (range 12) 667 | -10/Materials | Discovered new exit (range 15) 673 | -10/Materials | Repaired Med. Laser? 684 | -10/Materials | Identified exit to Mines 764 | -10/Materials | Entered another Materials area 764 | -9/Materials | Evolved 2 slots: Propulsion x1, Utility x1 920 | -9/Materials | Discovered new exit (range 6) 1076 | -9/Materials | Discovered new exit (range 15) 1473 | -9/Materials | Repaired Lgt. Armor Plating 1497 | -9/Materials | Discovered new exit (range 13) 1707 | -9/Materials | Discovered new exit (range 13) 1931 | -9/Materials | Discovered new exit (range 3) 2161 | -9/Materials | Discovered new exit (range 18) 2199 | -9/Materials | Identified exit to Mines 2199 | -9/Materials | Identified exit to Storage 3063 | -9/Materials | Repaired Lgt. EM Pulse Cannon? 3324 | -9/Materials | Entered Storage 3689 | -9/Storage | Used back door to open Recycling access 3689 | -9/Storage | Discovered new exit (range 5) 3864 | -9/Storage | Repaired Imp. Aluminum Leg 4175 | -9/Storage | Discovered new exit (range 19) 4590 | -9/Storage | Core integrity fell below 50% 5059 | -9/Storage | Identified exit to Recycling 5247 | -9/Storage | Assisted by bots powering up and referring to "LRC-V3" 5412 | -9/Storage | Entered Materials 5412 | -8/Materials | Accompanied by 10 allies 5412 | -8/Materials | Evolved 2 slots: Propulsion x1, Utility x1 5543 | -8/Materials | Build established: Commander-Mutant 5695 | -8/Materials | Garrison activated, responded to threat 5749 | -8/Materials | Repaired Aluminum Leg? 6032 | -8/Materials | Discovered new exit (range 15) 6102 | -8/Materials | Entered Factory 6102 | -7/Factory | Accompanied by 3 allies 6102 | -7/Factory | Evolved 2 slots: Propulsion x1, Utility x1 6310 | -7/Factory | Repaired Imp. Aluminum Leg 6534 | -7/Factory | Build established: Mutant 6824 | -7/Factory | Identified exit to Lower Caves 6927 | -7/Factory | Discovered new exit (range 8) 7142 | -7/Factory | Build established: Hauler-Mutant 7394 | -7/Factory | Garrison activated, responded to threat 7905 | -7/Factory | Identified exit to Factory 8137 | -7/Factory | Entered another Factory area 8137 | -6/Factory | Evolved 2 slots: Utility x2 8283 | -6/Factory | Repaired Cooling System 8373 | -6/Factory | Discovered new exit (range 4) 8834 | -6/Factory | Discovered new exit (range 5) 8933 | -6/Factory | Entered another Factory area 8933 | -5/Factory | Evolved 2 slots: Utility x2 10071 | -5/Factory | Discovered new exit (range 20) 10084 | -5/Factory | Repaired Arm. Huge Wheel 10325 | -5/Factory | Entered Upper Caves 10360 | -5/Upper Caves | Encountered a Warlord checkpoint 10390 | -5/Upper Caves | Identified exit to Upper Caves 10468 | -5/Upper Caves | Spotted B-75 Beast 10488 | -5/Upper Caves | Destroyed B-75 Beast 10513 | -5/Upper Caves | Learned 4 Factory zone layouts 10609 | -5/Upper Caves | Attracted the attention of an 0b10 outpost 10714 | -5/Upper Caves | Lost 4 parts (1u3w) 10785 | -5/Upper Caves | Entered another Upper Caves area 11178 | -5/Upper Caves | Learned location of 1 exit from Proximity Caves 11229 | -5/Upper Caves | Spotted B-75 Beast 11240 | -5/Upper Caves | Discovered new exit (range 4) 11245 | -5/Upper Caves | Entered Zhirov 11245 | -5/Zhirov | Discovered new exit (range 3) 11265 | -5/Zhirov | Met Zhirov 11286 | -5/Zhirov | Learned location of Quarantine (-3) 11286 | -5/Zhirov | Learned location of Testing (-2) 11286 | -5/Zhirov | Learned location of Command (-1) 11296 | -5/Zhirov | Zhirov requested help retrieving the SGEMP Prototype 11313 | -5/Zhirov | Found Alien Artifact 11313 | -5/Zhirov | Identified Integrated Reactor 11313 | -5/Zhirov | Installed Integrated Reactor, increased core energy generation (+10) 11332 | -5/Zhirov | Found Alien Artifact 11457 | -5/Zhirov | Entered Proximity Caves 11458 | -4/Proximity Caves | Identified exit to Factory 11487 | -4/Proximity Caves | Learned 8 Research zone layouts 11647 | -4/Proximity Caves | Learned Research stockpile data 11734 | -4/Proximity Caves | Self-destructed Last Messages --------------- 11695_ System corrupted: Neutron Cannon targeting data glitched. 11695_ H-77 Assassin destroyed. 11696_ Slug penetrates Wall. 11700_ Lgt. Antimatter Reactor fries itself beyond repair. 11704_ Penetrated by Slug. 11704_ Arm. Huge Wheel destroyed. 11708_ Penetrated by Slug. 11711_ Slug penetrates Wall. 11711_ Penetrated by Slug. 11712_ Imp. Targeting Computer fries itself beyond repair. 11714_ Destroyed Imp. Phase Shifter. 11714_ H-77 Assassin suffers critical hit. 11714_ H-77 Assassin destroyed. 11719_ Acquired 19 matter. 11721_ Acquired 10 matter. 11722_ System corrupted: Force Field rejected. 11722_ Acquired Force Field. 11727_ G-67 Veteran suffers critical hit. 11727_ Destroyed Flexi-carbon Leg. 11729_ Hpw. Shotgun fries itself beyond repair. Map ----- +----------------------------------------------------+ | ?????????????????????????????????????????????????? | | ?????????????????????????????????????????????????? | | ?????????????????????????????????????????????????? | | ?????????????????????????????????????????????????? | | ?????????????????????????????????????????????????? | | ?????????????????????????????????????????????????? | | ?????????????????????????????????????????????????? | | ?????????????????????????????????????????????????? | | ?????????????????????????????????????????????????? | | ?????????????????????????????????????????????????? | | ?????????????????????????????????????????????????? | | ?????????????????????????????????????????????????? | | ?????????????????????????????????????????????????? | | ?????????????????????????????????????????????????? | | ????????????????????????###??????????????????????? | | ????????????????????????#;#??????????????????????? | | ???????????????????????? ;#??##??????????????????? | | ???????????????????????? ### #??????????????????? | | ???????????????????????? # ;;####???????????????? | | ???????????##??????????? ;;; ????????????????? | | ??????????? ##????????## #?????????????????? | | ??????????? # ???####?#; #?????????????????? | | ??????????? ???## ##? #??????????????????? | | ??????????? ???# #? % #???????????????????? | | ??????????? #???? ### ### #???????? | | ??????????? #????# ##@ g g #??????? | | ??????????? #????# ##%;# ### g #??????? | | ???????#### #????# ##; ;##????????????????????? | | ??????## #????# ### ; #????????????????????? | | ?????## #???## ### ###????????????????????? | | ????## ??## #????????????????????? | | ??### ???# #????????????????????? | | ?## ????# ##### #????????????????????? | | ## #???## #???? #????????????????????? | | # !%##### #???? #????????????????????? | | # ## #???? ????????????????????? | | ## ##???? ???????????????????? | | ?### ## ##?### ??????????????????? | | ???## ###%! #???? #?????????????????? | | #???### #?# #???? #?????????????????? | | #?????# #?## #????? #?????????????????? | | #?????# ##??# ???? #?????????????????? | | ##????# ##?? ?? #?????????????????? | | ###### #?? ##?? ?????????????????? | | ## #?? ##??? ?????????????????? | | ##??? ##????? ????????????????? | | ###???? #?????? ????????????????? | | ##### ##??????# #???????????????????????? | | ### ##???###???????? #???????????????????????? | | ##?####??????????????? ???????????????????????? | +----------------------------------------------------+ Best States ------------- Heat Dissipation 71 Coolant Potential 80 Energy Generation 35 Energy Capacity 840 Matter Stores 300 Matter Capacity 600 Sight Range 22 Robot Scan Range 10 Terrain Scan Density 10 Armor Coverage 825 Resistance: KI 50 Resistance: TH 20 Resistance: EX 20 Resistance: EM 20 Resistance: I 20 Resistance: S 20 Resistance: P 20 Weapon Shielding 90 Evasion (%) 40 Core Analysis 8 Recoil Reduction 2 Particle Charging 20 Offensive Hacking 10 Item Schematics ----------------- Grenade Launcher | -9/Materials | Scanalyzed Hcp. Matter Pod | -9/Materials | Scanalyzed Arm. Treads | -6/Factory | Hacked Assault Drone Bay | -5/Zhirov | Free Exp. Heat Sink | -5/Zhirov | Free Exp. Optical Array | -5/Zhirov | Free Imp. Arc Thrower | -5/Zhirov | Free Robot Schematics ------------------ None Fabricated ------------ Nothing Alien Tech Used ----------------- Integrated Reactor Achievements -------------- Treasure Hunter Challenges ------------ None Game ------ Seed ChainEtherialInterrupter Manual? 0 Play Time 02:13:28 Cumulative 132.6 hours Start 2020.12.05 @ 20:19:37 End 2020.12.08 @ 12:47:42 Sessions 5 Manual Loads 0 Difficulty Adventurer Special Mode None Game No. 95 Rogue 49 Adventurer 25 Explorer 21 Win Type - Total 7 Types 6/0/0/1/0/0/0/0/0 Lore% 76 Gallery% 69 Achievement% 61 Wizard Run 0 Options --------- ASCII 0 Keyboard 0 Movement Mouse Keybinds 0 Fullscreen 2 Font 12/Terminus Map View 83x54 Tactical HUD 1 Map Filters NONE Filters NONE Steam 1 RUN: cc367b2c-e5d5-4907-b471-c824b9659818